[Event "*** Titled Tuesday Blitz"]
[Site "Chess.com"]
[Date "2020.04.07"]
[Round "5"]
[White "HarutyunianTigranK"]
[Black "TwentyHoursADay"]
[Result "1/2-1/2"]
[WhiteElo "2699"]
[BlackElo "2516"]
[TimeControl "180+1"]
[EndTime "13:57:47 PDT"]
[Termination "Game drawn by repetition"]

1. c4 {[%clk 0:03:00.9]} 1... e5 {[%clk 0:02:58.2]} 2. Nc3 {[%clk 0:03:01.4]}
2... Nc6 {[%clk 0:02:56.6]} 3. Nf3 {[%clk 0:03:02]} 3... Nf6 {[%clk 0:02:56.7]}
4. e4 {[%clk 0:03:02.5]} 4... Bb4 {[%clk 0:02:54.7]} 5. d3 {[%clk 0:03:02.2]}
5... d6 {[%clk 0:02:54]} 6. a3 {[%clk 0:03:02.5]} 6... Bxc3+ {[%clk 0:02:52.5]}
7. bxc3 {[%clk 0:03:03.4]} 7... h6 {[%clk 0:02:52.7]} 8. g3 {[%clk 0:03:03.3]}
8... O-O {[%clk 0:02:27.8]} 9. Bg2 {[%clk 0:03:03.5]} 9... Nd7 {[%clk 0:02:22]}
10. O-O {[%clk 0:03:02.6]} 10... Nc5 {[%clk 0:02:21.1]} 11. Nh4 {[%clk
0:03:02.2]} 11... a6 {[%clk 0:02:01.6]} 12. d4 {[%clk 0:03:00.2]} 12... Nd7
{[%clk 0:01:56.5]} 13. f4 {[%clk 0:02:30.7]} 13... b5 {[%clk 0:01:29.1]} 14. Nf5
{[%clk 0:02:24.5]} 14... Kh7 {[%clk 0:01:14.9]} 15. fxe5 {[%clk 0:02:13.3]}
15... dxe5 {[%clk 0:01:12.2]} 16. d5 {[%clk 0:02:12.2]} 16... Ne7 {[%clk
0:01:04.8]} 17. Qh5 {[%clk 0:01:48.5]} 17... Nf6 {[%clk 0:00:58.8]} 18. Qe2
{[%clk 0:01:35.3]} 18... Nxf5 {[%clk 0:00:48.7]} 19. exf5 {[%clk 0:01:36.2]}
19... e4 {[%clk 0:00:46.7]} 20. Bf4 {[%clk 0:01:23.5]} 20... bxc4 {[%clk
0:00:42.5]} 21. Qxc4 {[%clk 0:01:22.9]} 21... Qxd5 {[%clk 0:00:41.4]} 22. Qxd5
{[%clk 0:01:22.2]} 22... Nxd5 {[%clk 0:00:40.9]} 23. Bxe4 {[%clk 0:01:22.3]}
23... c6 {[%clk 0:00:41.2]} 24. f6+ {[%clk 0:01:21]} 24... g6 {[%clk 0:00:37.8]}
25. c4 {[%clk 0:01:02]} 25... Nxf4 {[%clk 0:00:31.1]} 26. Rxf4 {[%clk
0:01:02.9]} 26... Be6 {[%clk 0:00:21.4]} 27. Bxc6 {[%clk 0:00:50.4]} 27... Rac8
{[%clk 0:00:21.6]} 28. Bd5 {[%clk 0:00:48.9]} 28... Bxd5 {[%clk 0:00:20.7]} 29.
cxd5 {[%clk 0:00:49.8]} 29... Rfd8 {[%clk 0:00:21.4]} 30. Rd1 {[%clk 0:00:49.3]}
30... g5 {[%clk 0:00:21.4]} 31. Rf3 {[%clk 0:00:31]} 31... Rd6 {[%clk
0:00:21.5]} 32. h4 {[%clk 0:00:30.7]} 32... Kg6 {[%clk 0:00:21.5]} 33. Kg2
{[%clk 0:00:17.1]} 33... Rcd8 {[%clk 0:00:21]} 34. hxg5 {[%clk 0:00:14]} 34...
hxg5 {[%clk 0:00:21]} 35. Rfd3 {[%clk 0:00:12.4]} 35... Kxf6 {[%clk 0:00:20.5]}
36. g4 {[%clk 0:00:12.7]} 36... Ke5 {[%clk 0:00:17.2]} 37. Re1+ {[%clk
0:00:13.1]} 37... Kf6 {[%clk 0:00:14.2]} 38. Rf3+ {[%clk 0:00:13.6]} 38... Kg6
{[%clk 0:00:13.9]} 39. Re7 {[%clk 0:00:13.7]} 39... R8d7 {[%clk 0:00:12.8]} 40.
Rfxf7 {[%clk 0:00:13.3]} 40... Rxe7 {[%clk 0:00:12.2]} 41. Rxe7 {[%clk
0:00:14.2]} 41... Kf6 {[%clk 0:00:11.2]} 42. Ra7 {[%clk 0:00:13.6]} 42... Ke5
{[%clk 0:00:11.4]} 43. Rg7 {[%clk 0:00:13.5]} 43... Kf4 {[%clk 0:00:09.6]} 44.
Kf2 {[%clk 0:00:05.4]} 44... Rxd5 {[%clk 0:00:08.4]} 45. Rf7+ {[%clk 0:00:02.6]}
45... Kxg4 {[%clk 0:00:08.5]} 46. Ke3 {[%clk 0:00:03.1]} 46... Ra5 {[%clk
0:00:07.8]} 47. Ke4 {[%clk 0:00:02.9]} 47... Rxa3 {[%clk 0:00:08]} 48. Rg7
{[%clk 0:00:03.3]} 48... a5 {[%clk 0:00:07.9]} 49. Ke5 {[%clk 0:00:03.3]} 49...
Kh4 {[%clk 0:00:06.7]} 50. Kf5 {[%clk 0:00:03.4]} 50... Rf3+ {[%clk 0:00:06]}
51. Ke4 {[%clk 0:00:04]} 51... g4 {[%clk 0:00:06.5]} 52. Ra7 {[%clk 0:00:04.7]}
52... Ra3 {[%clk 0:00:05.6]} 53. Kf4 {[%clk 0:00:05.3]} 53... Ra4+ {[%clk
0:00:05]} 54. Ke3 {[%clk 0:00:04.6]} 54... Kh3 {[%clk 0:00:04.9]} 55. Kf2 {[%clk
0:00:03]} 55... Rf4+ {[%clk 0:00:04.5]} 56. Ke3 {[%clk 0:00:03]} 56... Rf5
{[%clk 0:00:03.5]} 57. Ke4 {[%clk 0:00:02.9]} 57... Rg5 {[%clk 0:00:03.7]} 58.
Kf4 {[%clk 0:00:03.4]} 58... Rg8 {[%clk 0:00:03.3]} 59. Rh7+ {[%clk 0:00:03.7]}
59... Kg2 {[%clk 0:00:02.5]} 60. Ra7 {[%clk 0:00:04.6]} 60... g3 {[%clk
0:00:02.1]} 61. Rxa5 {[%clk 0:00:05]} 61... Kh2 {[%clk 0:00:02.2]} 62. Rh5+
{[%clk 0:00:04.9]} 62... Kg1 {[%clk 0:00:02.5]} 63. Kf3 {[%clk 0:00:05.1]} 63...
g2 {[%clk 0:00:02.5]} 64. Ra5 {[%clk 0:00:05.7]} 64... Rf8+ {[%clk 0:00:02]} 65.
Kg3 {[%clk 0:00:06]} 65... Rg8+ {[%clk 0:00:02.6]} 66. Kf3 {[%clk 0:00:06.2]}
66... Kh1 {[%clk 0:00:02.9]} 67. Rh5+ {[%clk 0:00:05.6]} 67... Kg1 {[%clk
0:00:03.5]} 68. Ra5 {[%clk 0:00:06.3]} 1/2-1/2

[Event "*** Titled Tuesday Blitz"]
[Site "Chess.com"]
[Date "2020.04.07"]
[Round "5"]
[White "imdvb6307"]
[Black "aloe_normansen"]
[Result "1/2-1/2"]
[WhiteElo "2390"]
[BlackElo "2186"]
[TimeControl "180+1"]
[EndTime "13:57:48 PDT"]
[Termination "Game drawn by agreement"]

1. c4 {[%clk 0:02:59.3]} 1... Nf6 {[%clk 0:02:59.6]} 2. Nc3 {[%clk 0:02:58.3]}
2... g6 {[%clk 0:02:59.6]} 3. Nf3 {[%clk 0:02:55.2]} 3... Bg7 {[%clk 0:02:59.4]}
4. d4 {[%clk 0:02:55.6]} 4... d6 {[%clk 0:02:54.3]} 5. e4 {[%clk 0:02:55]} 5...
O-O {[%clk 0:02:54.5]} 6. Be2 {[%clk 0:02:55.2]} 6... e5 {[%clk 0:02:53.8]} 7.
O-O {[%clk 0:02:55.2]} 7... Nc6 {[%clk 0:02:53.6]} 8. d5 {[%clk 0:02:55]} 8...
Ne7 {[%clk 0:02:54]} 9. Ne1 {[%clk 0:02:55.2]} 9... Ne8 {[%clk 0:02:52.3]} 10.
f3 {[%clk 0:02:55.7]} 10... f5 {[%clk 0:02:52]} 11. g4 {[%clk 0:02:56.2]} 11...
Kh8 {[%clk 0:02:38]} 12. Be3 {[%clk 0:02:55.1]} 12... Ng8 {[%clk 0:02:34.7]} 13.
Nd3 {[%clk 0:02:06.7]} 13... h5 {[%clk 0:02:32.8]} 14. gxf5 {[%clk 0:01:52.5]}
14... gxf5 {[%clk 0:02:32]} 15. exf5 {[%clk 0:01:52.7]} 15... Bxf5 {[%clk
0:02:32]} 16. Ne4 {[%clk 0:01:51.8]} 16... Bxe4 {[%clk 0:02:16.9]} 17. fxe4
{[%clk 0:01:50.8]} 17... Qh4 {[%clk 0:02:09.1]} 18. Rxf8 {[%clk 0:01:47.2]}
18... Bxf8 {[%clk 0:02:08.6]} 19. Nf2 {[%clk 0:01:39.1]} 19... Nef6 {[%clk
0:02:02.8]} 20. Bf3 {[%clk 0:01:28.8]} 20... Nh6 {[%clk 0:01:45.9]} 21. Qd2
{[%clk 0:01:17]} 21... Nhg4 {[%clk 0:01:29.5]} 22. Nxg4 {[%clk 0:01:14.3]} 22...
Nxg4 {[%clk 0:01:18.5]} 23. Bg5 {[%clk 0:01:12.1]} 23... Qh3 {[%clk 0:01:15.2]}
24. Rf1 {[%clk 0:00:55.9]} 24... Bg7 {[%clk 0:01:09.5]} 25. Qg2 {[%clk
0:00:54.8]} 25... Qxg2+ {[%clk 0:01:05]} 26. Kxg2 {[%clk 0:00:54.1]} 26... Rf8
{[%clk 0:00:38.4]} 27. h3 {[%clk 0:00:52.1]} 27... Nf6 {[%clk 0:00:33.9]} 28.
Bxf6 {[%clk 0:00:51.1]} 28... Rxf6 {[%clk 0:00:33.3]} 29. Bxh5 {[%clk
0:00:48.6]} 29... Rxf1 {[%clk 0:00:32.8]} 30. Kxf1 {[%clk 0:00:48.4]} 30... Kg8
{[%clk 0:00:33.2]} 31. Ke2 {[%clk 0:00:46.3]} 31... Kf8 {[%clk 0:00:33.4]} 32.
Kf3 {[%clk 0:00:46.5]} 32... Ke7 {[%clk 0:00:33.4]} 33. Kg4 {[%clk 0:00:46.2]}
33... Kf6 {[%clk 0:00:33.6]} 34. Be8 {[%clk 0:00:45.8]} 34... Bh6 {[%clk
0:00:32.5]} 35. Kh5 {[%clk 0:00:44.7]} 35... Bc1 {[%clk 0:00:31.4]} 36. b3
{[%clk 0:00:31.4]} 36... Kg7 {[%clk 0:00:28.9]} 37. b4 {[%clk 0:00:27]} 37...
Bd2 {[%clk 0:00:27.2]} 38. a3 {[%clk 0:00:25.1]} 38... Bc1 {[%clk 0:00:26.7]}
39. a4 {[%clk 0:00:18.3]} 39... Bd2 {[%clk 0:00:26.5]} 40. c5 {[%clk 0:00:17.8]}
40... b6 {[%clk 0:00:26.6]} 41. cxd6 {[%clk 0:00:17.3]} 41... cxd6 {[%clk
0:00:26.3]} 42. b5 {[%clk 0:00:17.1]} 42... Be3 {[%clk 0:00:24.6]} 43. Kg4
{[%clk 0:00:17]} 43... Kf6 {[%clk 0:00:19.5]} 44. h4 {[%clk 0:00:15.7]} 44...
Bd2 {[%clk 0:00:19.2]} 45. h5 {[%clk 0:00:15.7]} 45... Be3 {[%clk 0:00:19.3]}
46. Bd7 {[%clk 0:00:15.8]} 46... Bd2 {[%clk 0:00:19.2]} 47. Bf5 {[%clk 0:00:14]}
47... Bc1 {[%clk 0:00:18.9]} 48. Kf3 {[%clk 0:00:13.8]} 48... Bd2 {[%clk
0:00:18.7]} 49. Ke2 {[%clk 0:00:12.7]} 49... Bf4 {[%clk 0:00:18.2]} 50. Kd3
{[%clk 0:00:12.2]} 50... Bc1 {[%clk 0:00:17.2]} 51. Kc3 {[%clk 0:00:10.3]} 51...
Be3 {[%clk 0:00:16.7]} 52. Kb3 {[%clk 0:00:09.7]} 52... Kg5 {[%clk 0:00:16.9]}
53. Bg6 {[%clk 0:00:08.7]} 53... Bf4 {[%clk 0:00:16.5]} 54. a5 {[%clk
0:00:07.9]} 54... Be3 {[%clk 0:00:15.2]} 55. axb6 {[%clk 0:00:07.2]} 55... axb6
{[%clk 0:00:14.9]} 56. Kc4 {[%clk 0:00:07.3]} 56... Kf6 {[%clk 0:00:14.6]} 57.
Kd3 {[%clk 0:00:07.1]} 57... Bf4 {[%clk 0:00:14.1]} 58. Bf5 {[%clk 0:00:06.8]}
58... Bg5 {[%clk 0:00:14.2]} 59. Ke2 {[%clk 0:00:06.1]} 59... Bf4 {[%clk
0:00:14.4]} 60. Kf3 {[%clk 0:00:06]} 60... Bg5 {[%clk 0:00:14.5]} 61. h6 {[%clk
0:00:05.9]} 61... Bxh6 {[%clk 0:00:14.6]} 62. Kg4 {[%clk 0:00:05.4]} 62... Be3
{[%clk 0:00:14.4]} 63. Kh5 {[%clk 0:00:05]} 63... Bd2 {[%clk 0:00:14.6]} 64. Kg4
{[%clk 0:00:04.9]} 1/2-1/2

[Event "*** Titled Tuesday Blitz"]
[Site "Chess.com"]
[Date "2020.04.07"]
[Round "5"]
[White "Shield12"]
[Black "FelixBlohberger"]
[Result "1-0"]
[WhiteElo "2925"]
[BlackElo "2599"]
[TimeControl "180+1"]
[EndTime "13:57:54 PDT"]
[Termination "Shield12 won on time"]

1. e4 {[%clk 0:03:00.9]} 1... c5 {[%clk 0:02:49.9]} 2. Nf3 {[%clk 0:03:00.8]}
2... d6 {[%clk 0:02:49.8]} 3. d4 {[%clk 0:03:00.9]} 3... cxd4 {[%clk 0:02:48.1]}
4. Nxd4 {[%clk 0:03:01.8]} 4... Nf6 {[%clk 0:02:47.4]} 5. Nc3 {[%clk 0:03:01.8]}
5... a6 {[%clk 0:02:46.6]} 6. h3 {[%clk 0:03:02]} 6... e6 {[%clk 0:02:46.1]} 7.
g4 {[%clk 0:03:01.7]} 7... Nfd7 {[%clk 0:02:45.6]} 8. g5 {[%clk 0:03:00.6]} 8...
b5 {[%clk 0:02:44.6]} 9. a3 {[%clk 0:03:00.7]} 9... Bb7 {[%clk 0:02:43.8]} 10.
Be3 {[%clk 0:03:00.7]} 10... Nc6 {[%clk 0:02:42.1]} 11. h4 {[%clk 0:03:00.1]}
11... Rc8 {[%clk 0:02:40.1]} 12. Be2 {[%clk 0:02:54.7]} 12... Be7 {[%clk
0:02:39.4]} 13. Rg1 {[%clk 0:02:53.1]} 13... Nce5 {[%clk 0:02:35.2]} 14. Qd2
{[%clk 0:02:42.1]} 14... Nc4 {[%clk 0:02:01.7]} 15. Bxc4 {[%clk 0:02:40.3]}
15... Rxc4 {[%clk 0:02:02.6]} 16. O-O-O {[%clk 0:02:32.5]} 16... Rc8 {[%clk
0:01:47.1]} 17. h5 {[%clk 0:02:19.6]} 17... g6 {[%clk 0:01:30.7]} 18. Rh1 {[%clk
0:02:12.8]} 18... Rg8 {[%clk 0:01:28.1]} 19. hxg6 {[%clk 0:02:11.8]} 19... hxg6
{[%clk 0:01:27.6]} 20. Nde2 {[%clk 0:01:33.7]} 20... Ne5 {[%clk 0:01:26.1]} 21.
Bf4 {[%clk 0:01:29.3]} 21... Nc4 {[%clk 0:01:19.6]} 22. Qd3 {[%clk 0:01:29.1]}
22... Bxg5 {[%clk 0:01:14.5]} 23. Bxg5 {[%clk 0:01:25.1]} 23... Qxg5+ {[%clk
0:01:13.1]} 24. Kb1 {[%clk 0:01:25.6]} 24... Qc5 {[%clk 0:01:01]} 25. f4 {[%clk
0:01:17.8]} 25... Qe3 {[%clk 0:00:53.5]} 26. Qxe3 {[%clk 0:01:15.9]} 26... Nxe3
{[%clk 0:00:53.4]} 27. Rxd6 {[%clk 0:01:16.8]} 27... Nc4 {[%clk 0:00:53.2]} 28.
Rd4 {[%clk 0:01:14.6]} 28... Ke7 {[%clk 0:00:52.7]} 29. Rhd1 {[%clk 0:01:12.4]}
29... Rgd8 {[%clk 0:00:52.7]} 30. e5 {[%clk 0:01:11.3]} 30... g5 {[%clk
0:00:45.9]} 31. b3 {[%clk 0:01:03.6]} 31... Ne3 {[%clk 0:00:39.3]} 32. Rxd8
{[%clk 0:01:01.7]} 32... Rxd8 {[%clk 0:00:39.2]} 33. Rxd8 {[%clk 0:01:00.8]}
33... Kxd8 {[%clk 0:00:39.2]} 34. fxg5 {[%clk 0:01:01.2]} 34... Ng4 {[%clk
0:00:38.9]} 35. Nf4 {[%clk 0:00:54.5]} 35... Nxe5 {[%clk 0:00:37.4]} 36. Kc1
{[%clk 0:00:54.9]} 36... Ke7 {[%clk 0:00:35.7]} 37. Nce2 {[%clk 0:00:54.3]}
37... Be4 {[%clk 0:00:21.9]} 38. Nd4 {[%clk 0:00:50.8]} 38... Ng6 {[%clk
0:00:17.8]} 39. Nxg6+ {[%clk 0:00:45.4]} 39... fxg6 {[%clk 0:00:17.9]} 40. Kd2
{[%clk 0:00:39.3]} 40... e5 {[%clk 0:00:17.9]} 41. Ke3 {[%clk 0:00:39.4]} 41...
Bd5 {[%clk 0:00:09.5]} 42. Nf3 {[%clk 0:00:34.7]} 42... Ke6 {[%clk 0:00:09.6]}
43. Nh4 {[%clk 0:00:33.7]} 43... Kf7 {[%clk 0:00:07.6]} 44. Kd3 {[%clk
0:00:33.8]} 44... Bc6 {[%clk 0:00:03.9]} 45. c4 {[%clk 0:00:32.8]} 45... Bb7
{[%clk 0:00:02.2]} 46. c5 {[%clk 0:00:29.6]} 46... Bd5 {[%clk 0:00:02.2]} 47. b4
{[%clk 0:00:29]} 47... Kg7 {[%clk 0:00:02.7]} 48. Kd2 {[%clk 0:00:27.9]} 48...
Kf7 {[%clk 0:00:03.1]} 49. Ke3 {[%clk 0:00:28.2]} 49... Bc6 {[%clk 0:00:01.6]}
50. Kd3 {[%clk 0:00:23.2]} 50... Bd5 {[%clk 0:00:01.5]} 51. Ke2 {[%clk
0:00:23.4]} 51... Bc6 {[%clk 0:00:01.8]} 52. Kf2 {[%clk 0:00:23.9]} 52... Bd5
{[%clk 0:00:02.3]} 53. Kg3 {[%clk 0:00:24.2]} 53... Bc6 {[%clk 0:00:02.6]} 54.
Kg4 {[%clk 0:00:24.3]} 54... Bd5 {[%clk 0:00:02.8]} 55. Nf3 {[%clk 0:00:23.6]}
55... Ke6 {[%clk 0:00:02.7]} 56. Nd2 {[%clk 0:00:22.8]} 56... Bc6 {[%clk
0:00:02.5]} 57. Nf1 {[%clk 0:00:21.1]} 57... Bh1 {[%clk 0:00:02.4]} 58. Ne3
{[%clk 0:00:19.5]} 58... Be4 {[%clk 0:00:02.2]} 59. Kg3 {[%clk 0:00:19.7]} 59...
Bd3 {[%clk 0:00:02.1]} 60. Kf3 {[%clk 0:00:19.9]} 60... Bb1 {[%clk 0:00:01.9]}
61. Ng4 {[%clk 0:00:19.2]} 61... Bf5 {[%clk 0:00:01.9]} 62. Nf6 {[%clk
0:00:18.8]} 62... Ke7 {[%clk 0:00:02.1]} 63. Nd5+ {[%clk 0:00:18.1]} 63... Kd7
{[%clk 0:00:02.3]} 64. Ke3 {[%clk 0:00:17.2]} 64... Bb1 {[%clk 0:00:01.9]} 65.
Nc3 {[%clk 0:00:17]} 65... Bc2 {[%clk 0:00:01.9]} 66. Kd2 {[%clk 0:00:16.3]}
66... Bf5 {[%clk 0:00:02]} 67. Nd5 {[%clk 0:00:16.5]} 67... Be6 {[%clk 0:00:01]}
68. Nf6+ {[%clk 0:00:15.8]} 1-0

[Event "*** Titled Tuesday Blitz"]
[Site "Chess.com"]
[Date "2020.04.07"]
[Round "5"]
[White "violetflower04"]
[Black "fidezivkovic"]
[Result "1-0"]
[WhiteElo "2220"]
[BlackElo "2338"]
[TimeControl "180+1"]
[EndTime "13:57:54 PDT"]
[Termination "violetflower04 won by resignation"]

1. b3 {[%clk 0:03:00.9]} 1... d5 {[%clk 0:02:58.7]} 2. Bb2 {[%clk 0:03:01.4]}
2... Nf6 {[%clk 0:02:58.4]} 3. e3 {[%clk 0:03:02]} 3... Bf5 {[%clk 0:02:57.6]}
4. Nf3 {[%clk 0:03:02.3]} 4... Nbd7 {[%clk 0:02:54.9]} 5. Nh4 {[%clk 0:03:00.6]}
5... Bg4 {[%clk 0:02:53.3]} 6. Qc1 {[%clk 0:02:53.8]} 6... e6 {[%clk 0:02:52.1]}
7. c4 {[%clk 0:02:48.3]} 7... c6 {[%clk 0:02:50.3]} 8. h3 {[%clk 0:02:44.5]}
8... Bh5 {[%clk 0:02:49]} 9. g4 {[%clk 0:02:44.5]} 9... Bg6 {[%clk 0:02:48]} 10.
Nxg6 {[%clk 0:02:45.1]} 10... hxg6 {[%clk 0:02:47]} 11. Bg2 {[%clk 0:02:44.9]}
11... Nc5 {[%clk 0:02:46.1]} 12. Qc2 {[%clk 0:02:39.1]} 12... dxc4 {[%clk
0:02:45]} 13. bxc4 {[%clk 0:02:38.3]} 13... Nd3+ {[%clk 0:02:43.8]} 14. Ke2
{[%clk 0:02:38.7]} 14... Nxb2 {[%clk 0:02:43.1]} 15. Qxb2 {[%clk 0:02:39.6]}
15... Be7 {[%clk 0:02:37.6]} 16. Qxb7 {[%clk 0:02:35.3]} 16... O-O {[%clk
0:02:36.6]} 17. Qxc6 {[%clk 0:02:30]} 17... Rc8 {[%clk 0:02:35.1]} 18. Qa4
{[%clk 0:02:27.1]} 18... Qb6 {[%clk 0:02:28.1]} 19. Nc3 {[%clk 0:02:19]} 19...
Rfd8 {[%clk 0:02:26.9]} 20. Rab1 {[%clk 0:02:14.9]} 20... Qd6 {[%clk 0:02:25.6]}
21. d4 {[%clk 0:02:12.3]} 21... e5 {[%clk 0:02:24.2]} 22. Rhd1 {[%clk 0:02:04]}
22... exd4 {[%clk 0:02:19.7]} 23. Rxd4 {[%clk 0:02:04.9]} 23... Qh2 {[%clk
0:02:17.7]} 24. Kf1 {[%clk 0:01:28.5]} 24... Rxd4 {[%clk 0:02:15.9]} 25. exd4
{[%clk 0:01:29.4]} 25... Qf4 {[%clk 0:02:14.1]} 26. Rd1 {[%clk 0:01:21.9]} 26...
Bf8 {[%clk 0:02:05.4]} 27. Nd5 {[%clk 0:01:13.3]} 27... Nxd5 {[%clk 0:02:03.6]}
28. Bxd5 {[%clk 0:01:14.2]} 28... Rb8 {[%clk 0:01:56.9]} 29. Qc2 {[%clk
0:01:03.8]} 29... Be7 {[%clk 0:01:51.3]} 30. Rd3 {[%clk 0:00:36.2]} 30... Bf6
{[%clk 0:01:43.8]} 31. Qd2 {[%clk 0:00:31.5]} 31... Rb1+ {[%clk 0:01:32.9]} 32.
Kg2 {[%clk 0:00:31.8]} 32... Qd6 {[%clk 0:01:31.8]} 33. Rb3 {[%clk 0:00:30.6]}
33... Ra1 {[%clk 0:01:23.6]} 34. Rb7 {[%clk 0:00:29.4]} 34... Qa6 {[%clk
0:01:17]} 35. Rxf7 {[%clk 0:00:27]} 35... Kh7 {[%clk 0:01:15.8]} 36. c5 {[%clk
0:00:20]} 36... Qa4 {[%clk 0:01:10.7]} 37. Bb3 {[%clk 0:00:17.2]} 37... Qxd4
{[%clk 0:01:09.4]} 38. Qxd4 {[%clk 0:00:17.7]} 38... Bxd4 {[%clk 0:01:08.4]} 39.
c6 {[%clk 0:00:18.1]} 39... Rc1 {[%clk 0:01:07.3]} 40. c7 {[%clk 0:00:18.6]}
40... Bb6 {[%clk 0:01:06.4]} 41. Bd5 {[%clk 0:00:10.1]} 41... Bxc7 {[%clk
0:01:04.5]} 42. a4 {[%clk 0:00:09.9]} 42... Bb6 {[%clk 0:01:03.3]} 43. Kg3
{[%clk 0:00:07.7]} 43... g5 {[%clk 0:01:02.1]} 44. Be4+ {[%clk 0:00:07]} 44...
Kh6 {[%clk 0:00:58.5]} 45. Rf8 {[%clk 0:00:06.5]} 45... g6 {[%clk 0:00:54.3]}
46. Rf6 {[%clk 0:00:07]} 46... Rc4 {[%clk 0:00:49.8]} 47. Rxg6+ {[%clk
0:00:06.6]} 47... Kh7 {[%clk 0:00:49]} 48. Re6+ {[%clk 0:00:06.8]} 48... Kg7
{[%clk 0:00:44.7]} 49. Bc6 {[%clk 0:00:07]} 49... Rf4 {[%clk 0:00:43]} 50. f3
{[%clk 0:00:04]} 50... Rb4 {[%clk 0:00:40.8]} 51. Bb5 {[%clk 0:00:04]} 51... Rb2
{[%clk 0:00:39.5]} 52. Rc6 {[%clk 0:00:04]} 52... Bf2+ {[%clk 0:00:37.6]} 53.
Kg2 {[%clk 0:00:04.3]} 53... Bh4+ {[%clk 0:00:36.2]} 54. Kh1 {[%clk 0:00:04.7]}
54... Bf2 {[%clk 0:00:33]} 55. Bd3 {[%clk 0:00:04]} 55... Rd2 {[%clk 0:00:31.2]}
56. Be4 {[%clk 0:00:03.1]} 56... Kf7 {[%clk 0:00:30.1]} 57. Kg2 {[%clk
0:00:02.7]} 57... Be3+ {[%clk 0:00:28.8]} 58. Kf1 {[%clk 0:00:03.6]} 58... Bf4
{[%clk 0:00:27.2]} 59. Rc5 {[%clk 0:00:02.4]} 59... Ra2 {[%clk 0:00:25.6]} 60.
Ra5 {[%clk 0:00:02.9]} 60... Be3 {[%clk 0:00:24]} 61. Bd5+ {[%clk 0:00:03.5]}
61... Ke7 {[%clk 0:00:21.6]} 62. Bxa2 {[%clk 0:00:04.4]} 62... Bb6 {[%clk
0:00:20.3]} 63. Rf5 {[%clk 0:00:05.3]} 63... Kd6 {[%clk 0:00:19.2]} 64. a5
{[%clk 0:00:06.2]} 64... Be3 {[%clk 0:00:17.4]} 65. Ke2 {[%clk 0:00:06.1]} 65...
Bd4 {[%clk 0:00:16.3]} 66. Rxg5 {[%clk 0:00:06]} 66... Bg1 {[%clk 0:00:14.5]}
67. Rf5 {[%clk 0:00:06.9]} 67... Kc6 {[%clk 0:00:13.6]} 68. Kd3 {[%clk
0:00:07.8]} 68... Kd6 {[%clk 0:00:12]} 69. Bc4 {[%clk 0:00:08.7]} 69... Kc6
{[%clk 0:00:10.4]} 70. h4 {[%clk 0:00:09.2]} 70... Kd6 {[%clk 0:00:09.6]} 71. h5
{[%clk 0:00:10.1]} 1-0